lending/lending_fUSD_20251016
["ID","MTS","AMOUNT","RATE_DAILY","PERIOD"]
[391476078,1760615491917,-286.51690312,0.00016338,2]
[391476079,1760615491963,-7630.6239128,0.00016338,2]
[391476080,1760615491974,-150.0,0.000164,2]
[391476081,1760615491984,-192.0,0.000164,2]
[391476082,1760615491995,-352.55850235,0.000164,2]
[391476083,1760615492006,-500.0,0.00016438,2]
[391476084,1760615492016,-500.0,0.00016438,2]
[391476085,1760615492027,-500.0,0.00016438,2]
[391476086,1760615492038,-1059.15,0.00016438,2]
[391476087,1760615492049,-1091.17,0.00016438,2]
[391476088,1760615492060,-500.0,0.00016438,2]
[391476089,1760615492071,-799.85,0.00016438,2]
[391476090,1760615492083,-500.0,0.00016438,2]
[391476091,1760615492095,-500.0,0.00016438,2]
[391476092,1760615492106,-229.75253702,0.00016454,2]
[391476093,1760615492117,-166.66,0.00016594,2]
[391476094,1760615492128,-188.95,0.00016641,2]
[391476095,1760615492139,-610.0,0.00016852,2]
[391476096,1760615492151,-3407.0,0.00016866,2]
[391476097,1760615492162,-4447.285,0.00016866,2]
[391476098,1760615492173,-556.0,0.00016866,2]
[391476099,1760615492183,-6436.0,0.00016866,2]
[391476100,1760615492195,-4030.0,0.00016866,2]
[391476101,1760615492207,-500.0,0.00016909,2]
[391476102,1760615492219,-500.0,0.00016909,2]
[391476103,1760615492230,-500.0,0.00016909,2]
[391476104,1760615492241,-500.0,0.00016909,2]
[391476105,1760615492252,-166.66,0.00016923,2]
[391476106,1760615492263,-9552.16786547,0.00017039,2]
[391476107,1760615492274,-250.0,0.00017039,2]
[391476108,1760615492284,-250.0,0.00017039,2]
[391476109,1760615492296,-250.0,0.00017039,2]
[391476110,1760615492307,-250.0,0.00017039,2]
[391476111,1760615492316,-250.0,0.00017039,2]
[391476112,1760615492327,-250.0,0.00017039,2]
[391476113,1760615492338,-317.24646943,0.00017039,2]
[391476114,1760615492349,-9905.5980765,0.00017094,2]
[391476115,1760615492360,-10272.10520533,0.00017149,2]
[391476116,1760615492373,-901.81009184,0.000172,2]
[391476117,1760615492384,-213.00799897,0.000172,2]
[391476118,1760615492395,-3286.62202279,0.00017204,2]
[391476119,1760615492406,-8732.803695,0.00017232,2]
[391476120,1760615492417,-1000.0,0.00017232,2]
[391476121,1760615492428,-2500.0,0.00017232,2]
[391476122,1760615492439,-166.66,0.00017251,2]
[391476123,1760615492450,-1303.75,0.00017331,2]
[391476124,1760615492461,-610.0,0.00017384,2]
[391476125,1760615492471,-901.81009184,0.000174,2]
[391476126,1760615492482,-213.00799897,0.000174,2]
[391476127,1760615492492,-193.5,0.00017426,2]
[391476128,1760615492503,-1000.0,0.00017457,2]
[391476129,1760615492514,-901.81009184,0.000175,2]
[391476130,1760615492524,-213.00799897,0.000175,2]
[391476131,1760615492535,-6602.54,0.00017558,2]
[391476132,1760615492546,-901.81009184,0.000177,2]
[391476133,1760615492556,-213.00799897,0.000177,2]
[391476134,1760615492567,-500.0,0.00017812,2]
[391476135,1760615492578,-2063.58,0.00017812,2]
[391476136,1760615492588,-500.0,0.00017812,2]
[391476137,1760615492605,-901.81009184,0.000179,2]
[391476138,1760615492617,-213.00799897,0.000179,2]
[391476139,1760615492628,-336.5464332,0.00018,2]
[391476140,1760615492639,-336.5464332,0.000182,2]
[391476141,1760615492650,-336.5464332,0.000184,2]
[391476142,1760615492661,-336.5464332,0.000185,2]
[391476143,1760615492672,-8732.80369498,0.00018606,2]
[391476144,1760615492683,-201.05,0.00018614,2]
[391476145,1760615492694,-336.5464332,0.000187,2]
[391476146,1760615492706,-259.18399985,0.00018988,2]
[391476147,1760615492717,-500.0,0.00018998,2]
[391476148,1760615492727,-1091.17,0.00018998,2]
[391476149,1760615492739,-500.0,0.00018998,2]
[391476150,1760615492749,-799.85,0.00018998,2]
[391476151,1760615492759,-500.0,0.00019,7]
[391476152,1760615492771,-500.0,0.00019,7]
[391476153,1760615492781,-500.0,0.00019,7]
[391476154,1760615492792,-877.482,0.00019152,2]
[391476155,1760615492803,-201.05,0.00019312,2]
[391476156,1760615492813,-250.0,0.0001935,7]
[391476157,1760615492824,-2369.89,0.00019481,2]
[391476158,1760615492834,-470.613,0.00019866,2]
[391476159,1760615492844,-6436.0,0.00019866,2]
[391476160,1760615492855,-3966.0,0.00019866,2]
[391476161,1760615492865,-592.6489553,0.00019899,2]
[391476162,1760615492876,-500.0,0.00019899,2]
[391476163,1760615492887,-500.0,0.00019899,2]
[391476164,1760615492897,-1059.15,0.00019899,2]
[391476165,1760615492907,-1091.17,0.00019899,2]
[391476166,1760615492928,-500.0,0.00019899,2]
[391476167,1760615492940,-11851.34563118,0.00019899,2]
[391476168,1760615492951,-799.85,0.00019899,2]
[391476169,1760615492963,-292.26878177,0.000199,2]
[391476170,1760615492974,-8732.80369498,0.0001998,2]
[391476171,1760615492985,-500.0,0.00019999,2]
[391476172,1760615492996,-1059.15,0.00019999,2]
[391476173,1760615493006,-2000.0,0.0002,2]
[391476174,1760615493016,-1729.87473065,0.0002,2]
[391476175,1760615495771,-200.0,0.00016866,2]
[391476176,1760615495781,-105.37968,0.00019866,2]
[391476177,1760615509374,167.0,0.000264,120]
[391476178,1760615519105,308.6,0.0002739,120]
[391476182,1760615552852,414.0,0.000204,120]
[391476183,1760615554319,414.0,0.0002142,120]
[391476184,1760615555397,414.0,0.00022491,120]
[391476185,1760615556029,414.0,0.00023616,120]
[391476186,1760615557090,414.0,0.00024796,120]
[391476187,1760615557849,414.0,0.00026036,120]
[391476188,1760615564244,167.0,0.0002679,120]
[391476189,1760615603406,167.0,0.000264,120]
[391476191,1760615639196,167.0,0.000264,120]
[391476193,1760615666928,500.0,0.00027397,120]
[391476194,1760615668777,270.917,0.000264,120]
[391476195,1760615706738,642.7,0.00027397,120]
[391476196,1760615717156,166.0,0.00022939,120]
[391476197,1760615718221,166.0,0.00024086,120]
[391476198,1760615719207,166.0,0.00025291,120]
[391476199,1760615720028,166.0,0.00026555,120]
[391476200,1760615724426,1000.0,0.00027397,120]
[391476201,1760615776428,1000.0,0.00027397,120]
[391476204,1760615818266,1000.0,0.00027397,120]
[391476205,1760615881722,300.0,0.00027397,120]
[391476206,1760615930411,150.0,0.0001334,2]
[391476207,1760615954870,1008.87345168,0.00027397,120]
[391476208,1760615966867,1584.3924,0.0002739,120]
[391476209,1760615969186,-150.0,0.00024799,10]
[391476210,1760616006010,166.0,0.00025197,120]
[391476211,1760616007211,166.0,0.00026457,120]
[391476213,1760616031510,2000.0,0.00026908,120]
[391476214,1760616031807,2000.0,0.00026908,120]
[391476215,1760616033280,2000.0,0.00026908,120]
[391476216,1760616033525,2000.0,0.00026908,120]
[391476217,1760616033834,2000.0,0.00026908,120]
[391476218,1760616034037,2000.0,0.00026908,120]
[391476219,1760616034218,2000.0,0.00026908,120]
[391476220,1760616034620,2000.0,0.00026908,120]
[391476221,1760616034955,2000.0,0.00026908,120]
[391476222,1760616035164,2000.0,0.00026908,120]
[391476223,1760616035450,2000.0,0.00026908,120]
[391476224,1760616035579,2000.0,0.00026908,120]
[391476225,1760616036484,2000.0,0.00026908,120]
[391476226,1760616036758,2000.0,0.00026908,120]
[391476227,1760616037011,2000.0,0.00026908,120]
[391476228,1760616037199,2000.0,0.00026908,120]
[391476229,1760616037487,2000.0,0.00026908,120]
[391476230,1760616037800,2000.0,0.00026908,120]
[391476231,1760616039469,2000.0,0.00026908,120]
[391476232,1760616039713,2000.0,0.00026908,120]
[391476233,1760616040045,542.462,0.00026908,120]
[391476234,1760616078206,224.0,0.00026037,120]
[391476235,1760616078580,224.0,0.00026027,120]
[391476236,1760616079082,224.0,0.00026017,120]
[391476237,1760616097815,605.24924922,0.00027397,120]
[391476238,1760616108539,2000.0,0.00026908,120]
[391476239,1760616108846,2000.0,0.00026908,120]
[391476240,1760616135597,-150.0,0.00024735,30]
[391476245,1760616363322,152.58749513,0.0001334,2]
[391476249,1760616396488,167.9,0.00027397,120]
[391476251,1760616447461,1600.0,0.0002655,120]
[391476252,1760616496662,300.0,0.00027397,120]
[391476253,1760616511624,863.21670258,0.00027397,120]
[391476254,1760616569120,1000.0,0.00027397,120]
[391476258,1760616576358,1000.0,0.00027397,120]
[391476259,1760616582307,1000.0,0.00027397,120]
[391476260,1760616591174,1000.0,0.00027397,120]
[391476261,1760616597989,1000.0,0.00027397,120]
[391476267,1760616634195,-2105.70523871,0.00016,2]
[391476268,1760616634328,-299.26758409,0.00016,2]
[391476269,1760616634339,-448.93019671,0.00016059,2]
[391476270,1760616634349,-27726.04328948,0.00016059,2]
[391476271,1760616634435,-22968.6788235,0.00016059,2]
[391476272,1760616634444,-178.0,0.00016684,2]
[391476273,1760616634454,-2000.0,0.00016685,2]
[391476274,1760616634463,-2000.0,0.00016685,2]
[391476275,1760616634473,-2000.0,0.00016685,2]
[391476276,1760616634482,-1000.11576966,0.00016685,2]
[391476277,1760616634491,-6436.0,0.000167,2]
[391476278,1760616634499,-150.181,0.00016866,2]
[391476279,1760616634509,-571.0,0.00016866,2]
[391476280,1760616634518,-1546.0,0.00016866,2]
[391476281,1760616634527,-1309.0,0.00016866,2]
[391476282,1760616634536,-1182.0,0.00016866,2]
[391476283,1760616634545,-2546.0,0.00016866,2]
[391476284,1760616634554,-902.0,0.00016866,2]
[391476285,1760616634563,-250.0,0.00017,2]
[391476286,1760616634573,-475.49624517,0.00017212,2]
[391476287,1760616634583,-1000.0,0.00017232,2]
[391476288,1760616634596,-500.0,0.00017331,2]
[391476289,1760616634607,-500.0,0.00017331,2]
[391476290,1760616634617,-926.76,0.00017331,2]
[391476291,1760616634630,-500.0,0.00017331,2]
[391476292,1760616634641,-500.0,0.00017331,2]
[391476293,1760616634651,-500.0,0.00017331,2]
[391476294,1760616634662,-500.0,0.00017331,2]
[391476295,1760616634672,-45731.53,0.00017331,2]
[391476296,1760616634682,-666.0,0.00017465,3]
[391476297,1760616634692,-151.0,0.00017533,2]
[391476298,1760616634702,-151.0,0.00017533,2]
[391476299,1760616634712,-151.0,0.00017533,2]
[391476300,1760616634721,-151.0,0.00017533,2]
[391476301,1760616634732,-151.0,0.00017533,2]
[391476302,1760616634741,-155.94364059,0.00017533,2]
[391476303,1760616634750,-151.0,0.00017533,2]
[391476304,1760616634760,-151.0,0.00017533,2]
[391476305,1760616634769,-151.0,0.00017533,2]
[391476306,1760616634779,-151.0,0.00017533,2]
[391476307,1760616634788,-151.0,0.00017533,2]
[391476308,1760616634798,-151.0,0.00017533,2]
[391476309,1760616634806,-151.0,0.00017533,2]
[391476310,1760616634816,-151.0,0.00017533,2]
[391476311,1760616634825,-214.77150142,0.00017533,2]
[391476312,1760616634837,-7553.38,0.00017544,2]
[391476313,1760616634847,-2500.0,0.0001762,2]
[391476314,1760616634856,-195.0,0.00017665,2]
[391476315,1760616634865,-1600.0,0.000177,2]
[391476316,1760616634875,-7252.80687943,0.00017712,2]
[391476317,1760616634884,-1000.0,0.0001772,2]
[391476318,1760616634894,-1000.0,0.0001772,2]
[391476319,1760616634903,-1000.0,0.0001772,2]
[391476320,1760616634913,-1000.0,0.0001772,2]
[391476321,1760616634927,-1000.0,0.0001772,2]
[391476322,1760616634937,-1000.0,0.0001772,2]
[391476323,1760616634947,-1000.0,0.0001772,2]
[391476324,1760616634957,-1000.0,0.0001772,2]
[391476325,1760616634968,-1000.0,0.0001772,2]
[391476326,1760616634977,-233.00554659,0.0001772,2]
[391476327,1760616634987,-1000.0,0.0001772,2]
[391476328,1760616634997,-250.0,0.0001772,2]
[391476329,1760616635006,-1000.0,0.0001772,2]
[391476330,1760616635016,-250.0,0.0001772,2]
[391476331,1760616635025,-1000.0,0.0001772,2]
[391476332,1760616635035,-250.0,0.0001772,2]
[391476333,1760616635044,-1000.0,0.0001772,2]
[391476334,1760616635053,-250.0,0.0001772,2]
[391476335,1760616635063,-1000.0,0.0001772,2]
[391476336,1760616635072,-250.0,0.0001772,2]
[391476337,1760616635083,-1000.0,0.0001772,2]
[391476338,1760616635093,-250.0,0.0001772,2]
[391476339,1760616635103,-1000.0,0.0001772,2]
[391476340,1760616635113,-250.0,0.0001772,2]
[391476341,1760616635122,-1000.0,0.0001772,2]
[391476342,1760616635131,-250.0,0.0001772,2]
[391476343,1760616635142,-1000.0,0.0001772,2]
[391476344,1760616635152,-250.0,0.0001772,2]
[391476345,1760616635162,-1000.0,0.0001772,2]
[391476346,1760616635171,-151.0,0.0001772,2]
[391476347,1760616635180,-250.0,0.0001772,2]
[391476348,1760616635191,-1000.0,0.0001772,2]
[391476349,1760616635200,-250.0,0.0001772,2]
[391476350,1760616635209,-322.6107,0.0001772,2]
[391476351,1760616635220,-721.12765535,0.0001772,2]
[391476352,1760616635230,-303.2802794,0.00018,2]
[391476353,1760616635239,-166.47,0.00018001,2]
[391476354,1760616635249,-151.0,0.00018268,2]
[391476355,1760616635258,-250.0,0.00018539,2]
[391476356,1760616635268,-300.0,0.00018587,2]
[391476357,1760616635278,-255.73518404,0.00018806,2]
[391476358,1760616635288,-151.0,0.00018816,2]
[391476359,1760616635298,-44503.34,0.00018906,2]
[391476360,1760616635307,-7252.80687941,0.00019033,2]
[391476361,1760616635317,-334.5472959,0.00019089,2]
[391476362,1760616635326,-1000.0,0.00019184,2]
[391476363,1760616635336,-500.0,0.00019184,2]
[391476364,1760616635345,-500.0,0.00019184,2]
[391476365,1760616635355,-500.0,0.00019184,2]
[391476366,1760616635364,-500.0,0.00019184,2]
[391476367,1760616635373,-500.0,0.00019184,2]
[391476368,1760616635383,-500.0,0.00019184,2]
[391476369,1760616635392,-500.0,0.00019184,2]
[391476370,1760616635402,-500.0,0.00019184,2]
[391476371,1760616635411,-500.0,0.00019184,2]
[391476372,1760616635421,-500.0,0.00019184,2]
[391476373,1760616635430,-500.0,0.00019184,2]
[391476374,1760616635440,-500.0,0.00019184,2]
[391476375,1760616635449,-500.0,0.00019184,2]
[391476376,1760616635458,-500.0,0.00019184,2]
[391476377,1760616635467,-500.0,0.00019184,2]
[391476378,1760616635476,-530.0,0.00019184,2]
[391476379,1760616635485,-297.3258414,0.0001921,2]
[391476380,1760616635494,-725.6536018,0.00019247,2]
[391476381,1760616635503,-10478.703144,0.0001926,2]
[391476382,1760616635513,-552.23,0.00019266,2]
[391476383,1760616635523,-192.21256103,0.00019364,2]
[391476384,1760616635532,-4000.0,0.00019369,2]
[391476385,1760616635541,-725.6536018,0.00019501,2]
[391476386,1760616635551,-6436.0,0.000197,2]
[391476387,1760616635560,-44.62032,0.00019866,2]
[391476388,1760616635569,-2546.0,0.00019866,2]
[391476389,1760616635578,-902.0,0.00019866,2]
[391476390,1760616635589,-500.0,0.00019897,2]
[391476391,1760616635598,-1600.0,0.00019912,2]
[391476392,1760616635608,-300.0,0.00019957,2]
[391476393,1760616635619,-725.65360182,0.0001998,2]
[391476394,1760616635628,-500.0,0.00019987,2]
[391476395,1760616635639,-1249.42,0.00019987,2]
[391476396,1760616635649,-500.0,0.00019987,2]
[391476397,1760616635659,-500.0,0.00019989,2]
[391476398,1760616635668,-500.0,0.00019997,2]
[391476399,1760616635678,-500.0,0.00019998,2]
[391476400,1760616635688,-500.0,0.00019998,2]
[391476401,1760616635698,-500.0,0.00019998,2]
[391476402,1760616635708,-1249.42,0.00019998,2]
[391476403,1760616635717,-500.0,0.00019998,2]
[391476404,1760616635727,-500.0,0.00019998,2]
[391476405,1760616635736,-500.0,0.00019998,2]
[391476406,1760616635746,-500.0,0.00019998,2]
[391476407,1760616635756,-500.0,0.00019998,2]
[391476408,1760616635765,-500.0,0.00019998,2]
[391476409,1760616635774,-500.0,0.00019998,2]
[391476410,1760616635784,-500.0,0.00019998,2]
[391476411,1760616635794,-181.07231161,0.00019998,2]
[391476412,1760616635804,-699.87,0.00019999,2]
[391476413,1760616635814,-201.05,0.0002001,2]
[391476414,1760616635824,-500.0,0.00020138,2]
[391476415,1760616635835,-161.77804293,0.00020157,2]
[391476416,1760616636172,-375.21,0.00020187,2]
[391476417,1760616636182,-500.0,0.00020286,2]
[391476418,1760616636193,-7252.80687941,0.00020354,2]
[391476419,1760616636203,-500.0,0.00020435,2]
[391476420,1760616636213,-346.92554585,0.00020458,2]
[391476421,1760616636222,-747.8093786,0.00020459,2]
[391476422,1760616636233,-255.73518402,0.00020512,2]
[391476423,1760616636242,-500.0,0.00020584,2]
[391476424,1760616636253,-201.05,0.00020708,2]
[391476425,1760616636262,-500.0,0.00020733,2]
[391476426,1760616636272,-1624.35758294,0.00020854,2]
[391476427,1760616636282,-500.0,0.00020881,2]
[391476428,1760616636291,-472.38,0.0002097,2]
[391476429,1760616636301,-13496.9853769,0.00020976,2]
[391476430,1760616636311,-500.0,0.0002103,2]
[391476431,1760616636320,-500.0,0.00021178,2]
[391476432,1760616636329,-297.3258414,0.00021294,2]
[391476433,1760616636341,-500.0,0.00021327,2]
[391476434,1760616636351,-201.05,0.00021406,2]
[391476435,1760616636361,-500.0,0.00021499,2]
[391476436,1760616636370,-500.0,0.00021499,2]
[391476437,1760616636380,-926.76,0.00021499,2]
[391476438,1760616636390,-500.0,0.00021499,2]
[391476439,1760616636399,-500.0,0.00021499,2]
[391476440,1760616636409,-500.0,0.00021499,2]
[391476441,1760616636418,-500.0,0.00021499,2]
[391476442,1760616636428,-43788.11833351,0.000215,2]
[391476443,1760616636437,-219.28690217,0.000215,2]
[391476444,1760616636446,-1008.93447017,0.000215,2]
[391476445,1760616636456,-1000.0,0.00021582,2]
[391476446,1760616636465,-7252.80687941,0.00021675,2]
[391476447,1760616636474,-2338.1147106,0.00021699,2]
[391476448,1760616636484,-476.70659007,0.000217,2]
[391476449,1760616636494,-1091.0,0.00021799,2]
[391476450,1760616636504,-12200.0,0.000218,3]
[391476451,1760616636513,-286.35925825,0.00021827,2]
[391476452,1760616636522,-5000.0,0.000219,2]
[391476453,1760616636531,-500.0,0.00021916,2]
[391476454,1760616636541,-500.0,0.00021916,2]
[391476455,1760616636549,-500.0,0.00021916,2]
[391476456,1760616636558,-1249.42,0.00021916,2]
[391476457,1760616636568,-500.0,0.00021916,2]
[391476458,1760616636577,-500.0,0.00021916,2]
[391476459,1760616636588,-500.0,0.00021917,2]
[391476460,1760616636598,-500.0,0.00021917,2]
[391476461,1760616636607,-500.0,0.00021917,2]
[391476462,1760616636617,-500.0,0.00021917,2]
[391476463,1760616636626,-500.0,0.00021917,2]
[391476464,1760616636635,-500.0,0.00021917,2]
[391476465,1760616636645,-500.0,0.00021917,2]
[391476466,1760616636655,-500.0,0.00021917,2]
[391476467,1760616636664,-500.0,0.00021917,2]
[391476468,1760616636674,-500.0,0.00021917,2]
[391476469,1760616636683,-500.0,0.00021917,2]
[391476470,1760616636692,-500.0,0.00021917,2]
[391476471,1760616636702,-281.84843475,0.00021917,2]
[391476472,1760616636711,-500.0,0.00021917,2]
[391476473,1760616636721,-500.0,0.00021917,2]
[391476474,1760616636730,-500.0,0.00021917,2]
[391476475,1760616636740,-500.0,0.00021917,2]
[391476476,1760616636749,-500.0,0.00021917,2]
[391476477,1760616636759,-251.06456016,0.00021917,2]
[391476478,1760616636769,-339.45573638,0.00021918,2]
[391476908,1760616642383,-170300.69691689,0.00018905,2]
[391477174,1760616644570,-112776.46756778,0.00018905,2]
[391477175,1760616644580,-4660.54426362,0.00021918,2]
[391477176,1760616644591,-600.0,0.00021918,2]
[391477178,1760616644600,-500.0,0.00021999,2]
[391477180,1760616644609,-500.0,0.00021999,2]
[391477182,1760616644619,-500.0,0.00021999,2]
[391477184,1760616644628,-699.87,0.00021999,2]
[391477186,1760616644637,-500.0,0.00021999,2]
[391477188,1760616644647,-500.0,0.00021999,2]
[391477190,1760616644657,-4130.45262586,0.00022,2]
[391477192,1760616644666,-151.0,0.00022,7]
[391477194,1760616644676,-1000.0,0.00022,8]
[391477196,1760616644685,-117023.70528532,0.00022,4]
[391477198,1760616644694,-24713.74128105,0.00022114,2]
[391477200,1760616644703,-1600.0,0.00022125,2]
[391477202,1760616644712,-255.73518402,0.00022219,2]
[391477204,1760616644723,-180.02627482,0.00022244,2]
[391477206,1760616644732,-521.7039098,0.00022244,2]
[391477208,1760616644749,-150.0,0.00022389,4]
[391477211,1760616644761,-150.0,0.00022389,4]
[391477213,1760616644770,-150.0,0.00022389,4]
[391477215,1760616644780,-154.34727999,0.00022389,4]
[391477217,1760616644790,-155.80232478,0.00022389,4]
[391477219,1760616644799,-150.0,0.00022389,4]
[391477221,1760616644810,-600.0,0.00022466,2]
[391477223,1760616644819,-198.36554219,0.00022542,2]
[391477225,1760616644829,-212.03935332,0.00022542,2]
[391477227,1760616644838,-220.94116472,0.00022632,2]
[391477229,1760616644848,-150.92,0.00022632,2]
[391477231,1760616644858,-150.92,0.00022632,2]
[391477233,1760616644868,-150.92,0.00022632,2]
[391477235,1760616644877,-150.92,0.00022632,2]
[391477237,1760616644887,-500.0,0.00022641,2]
[391477239,1760616644900,-500.0,0.00022641,2]
[391477241,1760616644910,-500.0,0.00022641,2]
[391477243,1760616644924,-500.0,0.00022641,2]
[391477245,1760616644933,-500.0,0.00022641,2]
[391477248,1760616644943,-500.0,0.00022641,2]
[391477250,1760616644956,-500.0,0.00022641,2]
[391477252,1760616644966,-500.0,0.00022641,2]
[391477254,1760616644976,-500.0,0.00022641,2]
[391477256,1760616644986,-500.0,0.00022641,2]
[391477258,1760616644997,-500.0,0.00022641,2]
[391477260,1760616645007,-500.0,0.00022641,2]
[391477262,1760616645016,-500.0,0.00022641,2]
[391477265,1760616645027,-1249.42,0.00022641,2]
[391477267,1760616645038,-1249.42,0.00022641,2]
[391477269,1760616645047,-1249.42,0.00022641,2]
[391477271,1760616645057,-1249.42,0.00022641,2]
[391477273,1760616645067,-1249.42,0.00022641,2]
[391477275,1760616645077,-150.0,0.00022641,2]
[391477277,1760616645087,-500.0,0.00022641,2]
[391477279,1760616645098,-500.0,0.00022641,2]
[391477281,1760616645107,-500.0,0.00022641,2]
[391477283,1760616645118,-500.0,0.00022641,2]
[391477286,1760616645128,-500.0,0.00022641,2]
[391477288,1760616645138,-500.0,0.00022641,2]
[391477290,1760616645152,-500.0,0.00022641,2]
[391477292,1760616645161,-500.0,0.00022641,2]
[391477294,1760616645171,-500.0,0.00022641,2]
[391477296,1760616645181,-500.0,0.00022641,2]
[391477299,1760616645191,-500.0,0.00022641,2]
[391477301,1760616645201,-500.0,0.00022641,2]
[391477303,1760616645211,-500.0,0.00022641,2]
[391477305,1760616645222,-48147.94806725,0.00022642,7]
[391477311,1760616645275,-64609.79429862,0.00022642,7]
[391477317,1760616645321,-5941.29999961,0.00022642,7]
[391477346,1760616645575,-1147.9021496,0.00022642,7]
[391477348,1760616645588,-2272.9336305,0.00022642,7]
[391477351,1760616645602,-3929.03295938,0.00022642,7]
[391477353,1760616645615,-2801.5670752,0.00022642,7]
[391477356,1760616645630,-1972.63844684,0.00022642,7]
[391477358,1760616645642,-1679.9984,0.00022642,7]
[391477373,1760616645727,-45650.12960004,0.00022642,7]
[391477376,1760616645739,-3427.01638359,0.00022642,7]
[391477540,1760616648962,-198334.16931614,0.00022642,7]
[391477541,1760616648974,-1637.94777119,0.00022642,7]
[391477542,1760616648986,-62904.01232304,0.00022642,7]
[391477543,1760616648998,-180045.51005477,0.00022642,7]
[391477544,1760616649109,-102402.42434223,0.00022642,7]
[391477545,1760616649119,-391287.04353987,0.00022642,2]
[391477546,1760616649128,-500.0,0.00022673,2]
[391477547,1760616649137,-500.0,0.00022673,2]
[391477548,1760616649146,-500.15284643,0.00022673,2]
[391477549,1760616649155,-500.19980439,0.00022673,2]
[391477550,1760616649165,-260.51290662,0.00022673,2]
[391477551,1760616649174,-500.1177526,0.00022673,2]
[391477552,1760616649183,-500.0,0.00022673,2]
[391477553,1760616649192,-500.0,0.00022673,2]
[391477554,1760616649202,-500.0,0.00022673,2]
[391477555,1760616649211,-537.77920126,0.00022673,2]
[391477556,1760616649220,-500.0,0.00022673,2]
[391477557,1760616649233,-500.0,0.00022673,2]
[391477558,1760616649246,-500.30913434,0.00022673,2]
[391477559,1760616649256,-6436.0,0.000227,2]
[391477560,1760616649266,-1091.0,0.00022889,2]
[391477561,1760616649275,-500.0,0.00022969,2]
[391477562,1760616649284,-500.0,0.00022969,2]
[391477563,1760616649293,-926.76,0.00022969,2]
[391477564,1760616649303,-500.0,0.00022969,2]
[391477565,1760616649312,-500.0,0.00022969,2]
[391477566,1760616649321,-500.0,0.00022969,2]
[391477567,1760616649331,-500.0,0.00022969,2]
[391477568,1760616649340,-7252.80687941,0.00022996,2]
[391477569,1760616649350,-1000.0,0.00023,8]
[391477570,1760616649359,-600.0,0.00023014,2]
[391477571,1760616649369,-27802.95894118,0.00023101,2]
[391477572,1760616649378,-150.92,0.00023122,2]
[391477573,1760616649389,-899.16044571,0.00023198,2]
[391477574,1760616649399,-297.3258414,0.00023378,2]
[391477575,1760616649408,-600.0,0.00023562,2]
[391477576,1760616649417,-1186.51,0.00023836,2]
[391477577,1760616649427,-499.62824925,0.00023875,2]
[391477578,1760616649436,-212.0393533,0.0002391,2]
[391477579,1760616649444,-255.73518402,0.00023925,2]
[391477580,1760616649454,-1000.0,0.0002398,2]
[391477581,1760616649464,-499.62824925,0.00023994,2]
[391477582,1760616649473,-3652.0,0.00024,2]
[391477583,1760616649482,-1091.0,0.00024033,2]
[391477584,1760616649491,-1373.81,0.00024082,2]
[391477585,1760616649500,-30892.17660131,0.00024088,2]
[391477586,1760616649510,-600.0,0.0002411,2]